bitfinex-derivatives/quotes_ETHF0:USTF0_20250323
["timestamp","ask_amount","ask_price","bid_price","bid_amount"]
[1742688917962,3.2078,1983.7,1983.2,3.21537404]
[1742688918170,1.00846,1983.6,1983.5,1.0085]
[1742688918475,1.00844,1983.6,1983.5,1.00847]
[1742688918669,4.5198,1983.7,1983.3,1.00856]
[1742688918969,4.5198,1983.7,1983.2,3.21537404]
[1742688918970,1.312,1983.5,1983.4,1.00855]
[1742688919480,1.0085,1983.5,1983.4,1.00853]
[1742688919871,2.36657,1983.6,1983.5,1.0085]
[1742688920072,1.3581,1983.6,1983.4,1.00853]
[1742688920273,2.36656,1983.6,1983.5,1.3629]
[1742688920672,1.3581,1983.6,1983.5,2.3714]
[1742688920880,3.2078,1983.7,1983.5,2.3714]
[1742688921069,4.5659,1983.7,1983.5,2.3714]
[1742688921378,5.57434,1983.7,1983.5,2.3714]
[1742688921579,5.57434,1983.7,1983.5,1.3629]
[1742688921776,1.00844,1983.6,1983.5,2.37136]
[1742688921978,1.00844,1983.6,1983.5,1.3629]
[1742688922778,4.5659,1983.7,1983.5,1.3629]
[1742688922779,5.57433,1983.7,1983.5,1.3629]
[1742688922982,5.57433,1983.7,1983.5,2.37137]
[1742688923189,1.00835,1983.8,1983.5,1.3629]
[1742688923473,1.01590404,1983.9,1983.8,1.00834]
[1742688924474,1.01586404,1983.9,1983.8,1.00834]
[1742688924779,0.00757404,1983.9,1983.8,1.00834]
[1742688931285,0.00757404,1983.9,1983.8,1.69554]
[1742688935001,1.37417404,1983.9,1983.8,1.69554]
[1742688935502,2.38246404,1983.9,1983.8,1.00834]
[1742688936500,1.37417404,1983.9,1983.8,1.00834]
[1742688938497,2.38246404,1983.9,1983.8,1.00834]
[1742688939594,1.37417404,1983.9,1983.8,1.00834]
[1742688940195,2.38246404,1983.9,1983.8,1.00834]
[1742688940602,1.00834,1983.8,1983.7,1.3981]
[1742688940802,2.37194,1983.8,1983.7,1.3981]
[1742688941107,2.37194,1983.8,1983.7,2.40649]
[1742688942206,2.37194,1983.8,1983.7,1.3981]
[1742688943205,2.37194,1983.8,1983.7,2.40649]
[1742688944701,2.37194,1983.8,1983.7,1.3981]
[1742688944897,1.00839,1983.7,1983.6,1.00841]
[1742688945095,6.97189,1983.7,1983.6,2.33391]
[1742688947809,6.97189,1983.7,1983.6,1.3255]
[1742688948902,6.97189,1983.7,1983.6,2.33394]
[1742688950104,6.97189,1983.7,1983.6,1.3255]
[1742688950809,1.0085,1983.5,1983.4,1.6821]
[1742688951798,2.34208,1983.6,1983.4,1.6821]
[1742688951999,1.0085,1983.5,1983.4,1.0085]
[1742688952200,2.3421,1983.5,1983.4,1.0085]
[1742688953405,2.3421,1983.5,1983.4,2.3021]
[1742688954002,2.3421,1983.5,1983.4,1.2936]
[1742688954003,5.5499,1983.5,1983.4,1.2936]
[1742688954405,5.5499,1983.5,1983.4,2.30215]
[1742688954595,5.5499,1983.5,1983.4,1.2936]
[1742688956608,5.5499,1983.5,1983.4,1.9672]
[1742688958411,5.5499,1983.5,1983.4,1.2936]
[1742688959805,5.5499,1983.5,1983.2,0.00757404]
[1742688959806,1.0086,1983.3,1983.2,0.00757404]
[1742688960008,1.0086,1983.3,1983.2,1.38497404]
[1742688960405,2.3734,1983.3,1983.2,1.38497404]
[1742688962411,2.3734,1983.3,1982.9,0.6488]
[1742688962412,1.00875,1983.0,1982.9,0.6488]
[1742688962605,1.0089,1982.7,1982.6,3.2078]
[1742688962800,1.00895,1982.6,1982.5,1.3275]
[1742688963914,1.00895,1982.6,1982.5,2.5963]
[1742688964616,1.00895,1982.6,1982.5,3.6053]
[1742688964812,1.00895,1982.6,1982.5,2.5963]
[1742688966419,2.30065,1982.6,1982.5,2.5963]
[1742688968006,2.30065,1982.6,1982.5,3.6053]
[1742688968209,1.00895,1982.6,1982.5,3.6053]
[1742688968511,1.00895,1982.6,1982.5,2.5963]
[1742688970009,2.30355,1982.6,1982.5,2.5963]
[1742688970418,2.95005,1982.6,1982.5,2.5963]
[1742688971116,2.95005,1982.6,1982.5,1.9176]
[1742688973314,2.95005,1982.6,1982.5,1.2688]
[1742688974813,2.30355,1982.6,1982.5,1.2688]
[1742688975013,1.00895,1982.6,1982.5,1.2688]
[1742688975405,1.00895,1982.6,1982.5,2.2778]
[1742688976011,1.00895,1982.6,1982.5,1.2688]
[1742688976414,2.36025,1982.6,1982.5,1.2688]
[1742688980223,5.56805,1982.6,1982.5,2.2778]
[1742688980415,4.21675,1982.6,1982.5,2.2778]
[1742688984027,0.00757404,1982.7,1982.6,1.00895]
[1742688984329,0.00757404,1982.7,1982.6,3.66315]
[1742688984924,2.52154,1983.3,1982.6,3.66315]
[1742688984925,8.46512,1983.6,1983.0,1.00875]
[1742688985226,1.00865,1983.3,1983.2,1.00863]
[1742688986328,1.00865,1983.3,1983.2,2.34103]
[1742688987122,2.41442404,1983.4,1983.3,1.0086]
[1742688987324,2.41442404,1983.4,1983.3,2.2837]
[1742688988227,0.00757404,1983.4,1983.3,2.2837]
[1742688990235,1.01612404,1983.4,1983.3,1.2751]
[1742688990427,2.32962404,1983.4,1983.3,1.2751]
[1742688991130,2.96742404,1983.4,1983.3,1.2751]
[1742688991733,2.96742404,1983.4,1983.3,2.2837]
[1742688992733,2.96742404,1983.4,1983.3,1.2751]
[1742688994435,2.96742404,1983.4,1983.3,2.2837]
[1742688994938,2.32962404,1983.4,1983.3,2.2837]
[1742688996030,1.32107404,1983.4,1983.3,2.2837]
[1742688996228,0.00757404,1983.4,1983.3,2.2837]
[1742688999739,1.00834,1983.8,1983.7,1.00836]
[1742689000439,1.00834,1983.8,1983.7,2.38936]
[1742689000632,2.33623,1983.9,1983.8,1.00834]
[1742689000833,2.33623,1983.9,1983.8,2.38934]
[1742689001444,2.33623,1983.9,1983.8,1.381]
[1742689002945,2.33623,1983.9,1983.8,2.38934]
[1742689003138,2.33623,1983.9,1983.8,1.381]
[1742689003838,2.33623,1983.9,1983.8,2.38934]
[1742689005547,2.33623,1983.9,1983.8,1.381]
[1742689006343,2.33623,1983.9,1983.8,2.38934]
[1742689007343,2.33623,1983.9,1983.8,1.381]
[1742689009739,2.33623,1983.9,1983.8,2.38934]
[1742689010044,2.33623,1983.9,1983.8,1.381]
[1742689010341,2.33623,1983.9,1983.8,2.38934]
[1742689010534,2.33623,1983.9,1983.8,1.381]
[1742689013044,1.3279,1983.9,1983.8,2.38934]
[1742689013350,1.312,1984.1,1983.8,1.381]
[1742689013652,2.33014,1984.0,1983.9,1.9977]
[1742689013838,5.53794,1984.0,1983.9,1.3002]
[1742689019543,5.53794,1984.0,1983.9,2.30849]
[1742689019748,5.53794,1984.0,1983.9,1.3002]
[1742689019958,5.53794,1984.0,1983.9,2.30849]
[1742689020254,5.53794,1984.0,1983.9,1.3002]
[1742689020453,5.53794,1984.0,1983.9,2.30849]
[1742689020645,5.53794,1984.0,1983.9,1.3002]
[1742689020845,5.53794,1984.0,1983.9,2.30849]
[1742689021659,1.3219,1984.0,1983.9,2.30849]
[1742689022063,1.00823,1984.1,1984.0,1.00824]
[1742689022250,3.2078,1984.2,1984.1,1.00819]
[1742689022762,3.2078,1984.2,1984.1,2.31079]
[1742689024161,2.341,1984.3,1984.2,1.00814]
[1742689024360,2.341,1984.3,1984.2,2.41714]
[1742689025761,1.3329,1984.3,1984.2,2.41714]
[1742689027164,2.34099,1984.3,1984.2,2.41714]
[1742689027364,1.3329,1984.3,1984.2,2.41714]
[1742689027565,4.21589,1984.4,1984.3,1.00809]
[1742689027761,5.55379,1984.4,1984.3,3.69909]
[1742689028658,3.2078,1984.4,1984.3,3.69909]
[1742689029257,1.00802,1984.5,1984.4,1.00801]
[1742689029567,2.32382,1984.5,1984.4,1.2884]
[1742689031167,2.32382,1984.5,1984.4,2.29644]
[1742689031669,4.21577,1984.6,1984.5,1.00799]
[1742689031861,5.53157,1984.6,1984.5,2.29639]
[1742689032270,5.53157,1984.6,1984.5,1.2884]
[1742689033270,5.53157,1984.6,1984.5,2.29639]
[1742689033271,2.32377,1984.6,1984.5,2.29639]
[1742689035277,2.32377,1984.6,1984.5,1.2884]
[1742689035572,5.53157,1984.6,1984.5,1.2884]
[1742689037775,2.32377,1984.6,1984.5,1.2884]
[1742689040866,5.53157,1984.6,1984.5,1.2884]
[1742689042472,1.00804,1984.4,1984.3,0.6597]
[1742689042777,4.21584,1984.4,1984.3,0.6597]
[1742689043379,4.86774,1984.4,1984.3,0.6597]
[1742689043677,3.2078,1984.4,1984.3,1.66779]
[1742689044277,2.41232,1984.5,1984.4,1.00804]
[1742689044472,1.00802,1984.5,1984.4,2.99574]
[1742689044980,4.21574,1984.6,1984.5,1.00799]
[1742689045186,1.00794,1984.6,1984.5,2.35839]
[1742689045777,3.2078,1984.8,1984.5,1.3504]
[1742689046073,3.2078,1984.8,1984.4,3.15737]
[1742689046074,2.37967,1984.8,1984.7,1.00789]
[1742689046480,2.37967,1984.8,1984.7,3.05789]
[1742689047386,2.37967,1984.8,1984.7,2.05]
[1742689047572,2.37967,1984.8,1984.7,3.05789]
[1742689048374,2.37967,1984.8,1984.7,1.3504]
[1742689051085,1.00794,1984.6,1984.5,1.00796]
[1742689051587,5.247,1984.7,1984.4,1.3178]
[1742689051783,3.8913,1984.7,1984.4,1.3178]
[1742689051984,1.00797,1984.6,1984.5,1.00797]
[1742689052387,2.36367,1984.6,1984.5,2.31647]
[1742689053893,2.36367,1984.6,1984.5,1.3085]
[1742689054088,2.36367,1984.6,1984.5,2.31649]
[1742689056890,2.36367,1984.6,1984.5,1.3085]
[1742689057792,2.36367,1984.6,1984.5,2.31649]
[1742689057996,2.36367,1984.6,1984.5,1.3085]
[1742689058491,3.2078,1984.7,1984.5,1.3085]
[1742689058794,3.2078,1984.7,1984.6,1.00794]
[1742689059187,1.04312942,1984.8,1984.7,1.00789]
[1742689059394,23.54884964,1985.7,1985.3,2.51888]
[1742689059591,23.54884964,1985.7,1984.8,5.03919]
[1742689059592,1.00748,1985.5,1985.4,2.6879]
[1742689059797,1.00748,1985.5,1985.3,0.00755477]
[1742689059798,3.2078,1985.5,1985.3,0.00755477]
[1742689059993,3.03303,1985.4,1985.3,0.00755477]
[1742689060189,4.54442,1985.4,1984.9,1.335]
[1742689060395,7.76888,1985.3,1984.9,1.335]
[1742689060703,1.00773,1985.0,1984.9,0.6567]
[1742689061195,3.72073,1985.0,1984.9,0.6567]
[1742689061395,1.00783,1984.9,1984.8,1.01536477]
[1742689061596,2.38853,1984.9,1984.8,1.01536477]
[1742689062897,1.3807,1984.9,1984.8,1.01536477]
[1742689063102,1.3807,1984.9,1984.8,2.36806477]
[1742689064403,4.21551,1985.1,1985.0,1.00773]
[1742689065801,5.51481,1985.1,1985.0,2.35553]
[1742689065996,6.15221,1985.1,1985.0,2.35553]
[1742689066904,1.00778,1984.9,1984.8,1.01535477]
[1742689067108,1.00778,1984.9,1984.8,1.35535477]
[1742689067796,1.00778,1984.9,1984.8,2.36318477]
[1742689068199,1.2993,1985.0,1984.8,1.35535477]
[1742689068397,2.30707,1985.0,1984.9,1.3478]
[1742689070102,1.00778,1984.9,1984.8,0.00755477]
[1742689070301,5.51138,1984.9,1984.8,0.00755477]
[1742689072600,7.48310278,1984.9,1984.8,0.00755477]
[1742689072914,8.15800278,1984.9,1984.8,0.00755477]
[1742689078513,2.51971,1984.8,1984.3,1.00805]
[1742689078810,1.00804,1984.4,1984.3,1.3296]
[1742689079309,2.39474,1984.4,1984.3,1.9858]
[1742689080812,1.00809,1984.3,1984.2,0.00755477]
[1742689081009,5.48799,1984.3,1984.2,0.00755477]
[1742689081414,2.28019,1984.3,1984.2,0.00755477]
[1742689082313,5.48799,1984.3,1984.2,0.00755477]
[1742689083414,5.48799,1984.3,1984.2,1.35605477]
[1742689087319,4.21589,1984.3,1984.2,2.36419477]
[1742689087921,3.2078,1984.3,1984.2,2.36419477]
[1742689089220,4.21589,1984.3,1984.2,2.36419477]
[1742689089520,0.00755477,1984.4,1984.3,1.00809]
[1742689089718,0.00755477,1984.4,1984.3,3.70359]
[1742689090823,1.01559477,1984.4,1984.3,3.70359]
[1742689092012,1.01559477,1984.4,1984.3,2.6955]
[1742689093623,1.01559477,1984.4,1984.3,1.9996]
[1742689093824,1.00809,1984.3,1984.2,0.00755477]
[1742689094120,6.30039,1984.3,1984.2,0.00755477]
[1742689094317,6.30039,1984.3,1984.2,1.27915477]
[1742689100024,6.30039,1984.3,1984.2,0.00755477]
[1742689102016,7.25510194,1984.3,1984.2,0.00755477]
[1742689102319,1.00814,1984.2,1984.1,1.345]
[1742689102520,3.95595194,1984.2,1984.1,1.345]
[1742689102823,1.00829,1983.9,1983.8,0.677]
[1742689104416,2.29699,1983.9,1983.8,1.9779]
[1742689109129,1.00834,1983.8,1983.7,0.00755477]
[1742689109428,6.21984,1983.8,1983.7,0.00755477]
[1742689110220,7.17502778,1983.8,1983.7,0.00755477]
[1742689110420,6.21984,1983.8,1983.7,0.00755477]
[1742689119732,1.0085,1983.5,1983.4,1.3283]
[1742689120327,2.3295,1983.5,1983.4,1.3283]
[1742689123940,1.0085,1983.5,1983.4,1.3283]
[1742689124930,2.4114,1983.5,1983.4,1.3283]
[1742689126927,1.0085,1983.5,1983.4,1.3283]
[1742689131842,2.40019,1983.6,1983.4,1.3283]
[1742689132037,1.0085,1983.5,1983.4,2.33682]
[1742689132238,1.00848,1983.6,1983.5,1.00849]
[1742689132443,1.00842,1983.7,1983.6,1.00844]
[1742689132642,1.00842,1983.7,1983.6,1.3625]
[1742689133039,1.00842,1983.7,1983.6,2.6323]
[1742689133648,1.00842,1983.7,1983.6,3.64074]
[1742689133839,1.00842,1983.7,1983.6,2.6323]
[1742689134145,1.00842,1983.7,1983.6,3.64074]
[1742689135052,1.00842,1983.7,1983.6,2.6323]
[1742689137048,1.00842,1983.7,1983.6,3.64074]
[1742689137443,1.00842,1983.7,1983.6,2.6323]
[1742689140748,1.00842,1983.7,1983.6,3.64074]
[1742689141151,1.00842,1983.7,1983.6,2.6323]
[1742689143853,1.3332,1983.8,1983.6,2.6323]
[1742689144047,2.34158,1983.8,1983.7,2.32769]
[1742689144250,2.34158,1983.8,1983.7,1.3193]
[1742689144447,2.34158,1983.8,1983.7,2.32769]
[1742689144651,2.34158,1983.8,1983.7,1.3193]
[1742689146257,2.98408,1983.8,1983.7,1.3193]
[1742689147753,1.00839,1983.7,1983.6,1.3625]
[1742689148053,1.0085,1983.5,1983.4,1.0085]
[1742689148356,1.4047,1983.7,1983.3,3.21535477]
[1742689148357,1.00855,1983.4,1983.3,1.31015477]
[1742689148555,2.41325,1983.4,1983.3,1.31015477]
[1742689149658,2.41325,1983.4,1983.3,2.61405477]
[1742689150053,2.41325,1983.4,1983.3,3.62265477]
[1742689151562,5.72867,1983.8,1983.3,5.82185477]
[1742689151755,2.3061,1983.6,1983.5,1.0085]
[1742689152255,3.8828,1983.8,1983.4,1.3822]
[1742689152462,2.30601,1983.7,1983.6,1.00844]
[1742689153049,2.30601,1983.7,1983.6,1.65194]
[1742689153362,2.30601,1983.7,1983.6,2.35244]
[1742689153962,1.2976,1983.7,1983.6,2.35244]
[1742689154966,2.30599,1983.7,1983.6,2.35244]
[1742689157070,1.2976,1983.7,1983.6,2.35244]
[1742689158478,2.30599,1983.7,1983.6,2.35244]
[1742689158971,1.2976,1983.7,1983.6,2.35244]
[1742689159869,1.00833,1983.9,1983.8,1.00834]
[1742689160175,2.34363,1983.9,1983.8,1.00834]
[1742689160377,2.34363,1983.9,1983.7,1.00836]
[1742689160565,1.00833,1983.9,1983.8,1.00834]
[1742689160768,1.00833,1983.9,1983.6,1.344]
[1742689160973,3.8828,1984.0,1983.9,1.00829]
[1742689161181,3.2078,1984.0,1983.9,1.00829]
[1742689161672,4.21604,1984.0,1983.8,1.00831]
[1742689161876,1.00829,1983.9,1983.8,1.00831]
[1742689162070,1.00834,1983.8,1983.7,1.00835]
[1742689162275,1.00839,1983.7,1983.6,2.3524]
[1742689162472,1.70579,1983.7,1983.6,2.3524]
[1742689163369,1.70579,1983.7,1983.6,1.344]
[1742689163769,1.70579,1983.7,1983.6,2.35244]
[1742689164676,0.6974,1983.7,1983.3,3.21535477]
[1742689164971,1.00851,1983.5,1983.4,1.00849]
[1742689165368,1.00855,1983.4,1983.3,4.22392477]
[1742689175690,1.00853,1983.5,1983.4,1.00851]
[1742689175889,1.00847,1983.6,1983.5,1.00845]
[1742689176192,1.00846,1983.6,1983.5,1.00845]
[1742689177485,1.70582,1983.7,1983.5,1.00845]
[1742689177690,1.70583,1983.7,1983.3,5.73685477]
[1742689177880,1.70583,1983.7,1983.6,1.00844]
[1742689178094,3.2078,1984.0,1983.7,1.00834]
[1742689178397,1.71142,1983.9,1983.7,1.00835]
[1742689178596,1.00834,1983.8,1983.7,1.00835]
[1742689178798,1.71143,1983.9,1983.8,1.00834]
[1742689179900,1.00828,1984.0,1983.8,1.00834]
[1742689180197,1.3366,1983.9,1983.8,1.70794]
[1742689181497,2.34489,1983.9,1983.8,0.6996]
[1742689181691,1.00834,1983.8,1983.7,1.00835]
[1742689181999,2.38644,1983.8,1983.7,1.70795]
[1742689182204,1.3781,1983.8,1983.7,1.70795]
[1742689182502,2.38644,1983.8,1983.7,1.70795]
[1742689182798,2.38644,1983.8,1983.7,0.6996]
[1742689183401,1.00839,1983.7,1983.6,1.64611]
[1742689183593,3.07529,1983.7,1983.6,1.64611]
[1742689183789,3.07529,1983.7,1983.6,0.6377]
[1742689183990,3.07529,1983.7,1983.4,0.6714]
[1742689183991,1.0085,1983.5,1983.4,0.6714]
[1742689185301,1.0085,1983.5,1983.4,1.67995]
[1742689185502,1.0085,1983.5,1983.4,0.6714]
[1742689186902,1.0085,1983.5,1983.4,1.67995]
[1742689189605,1.0085,1983.5,1983.4,0.6714]
[1742689192207,1.0085,1983.5,1983.4,1.67995]
[1742689192502,1.0085,1983.5,1983.4,0.6714]
[1742689195502,1.0085,1983.5,1983.4,1.67995]
[1742689195708,1.0085,1983.5,1983.4,0.6714]
[1742689195901,1.0085,1983.5,1983.4,1.67995]
[1742689197812,1.0085,1983.5,1983.4,0.6714]
[1742689197997,1.0085,1983.5,1983.4,1.9838]
[1742689202799,1.0085,1983.5,1983.4,2.99235]
[1742689204204,1.0085,1983.5,1983.4,1.9838]
[1742689204897,1.3781,1983.6,1983.4,1.9838]
[1742689205097,2.38655,1983.6,1983.5,1.2944]
[1742689209805,1.3781,1983.6,1983.4,0.6714]
[1742689210007,2.3866,1983.5,1983.4,1.9784]
[1742689214011,1.3781,1983.5,1983.4,2.98695]
[1742689214310,1.97932815,1983.6,1983.4,2.98695]
[1742689214311,1.02163641,1983.6,1983.5,1.0085]
[1742689214509,1.02163641,1983.6,1983.5,2.3307]
[1742689214906,1.00828,1984.0,1983.9,1.00829]
[1742689215219,1.00831,1983.9,1983.8,1.00831]
[1742689215613,2.36257,1984.0,1983.9,1.00829]
[1742689215813,4.21603,1984.1,1984.0,1.00824]
[1742689216008,5.57033,1984.1,1984.0,1.00824]
[1742689216508,4.5621,1984.1,1983.8,1.3534]
[1742689217012,5.5703,1984.1,1984.0,1.00824]
[1742689218711,3.2078,1984.3,1984.0,1.3469]
[1742689218912,14.40676718,1984.4,1984.2,4.21591]
[1742689219213,14.40676718,1984.4,1984.3,1.3469]
[1742689219725,13.39868718,1984.4,1984.3,2.35499]
[1742689220319,14.40672718,1984.4,1984.3,3.01309]
[1742689221321,13.39868718,1984.4,1984.3,3.01309]
[1742689221525,14.40672718,1984.4,1984.3,3.01309]
[1742689222733,14.40672718,1984.4,1984.3,2.005]
[1742689223020,2.40289477,1984.4,1984.3,1.3469]
[1742689223209,3.05679477,1984.4,1984.3,1.3469]
[1742689223621,1.00831,1983.9,1983.8,1.0083]
[1742689223824,1.00828,1984.0,1983.9,1.00828]
[1742689225622,2.32948,1984.0,1983.9,1.00828]
[1742689226123,1.3212,1984.0,1983.9,1.00828]
[1742689226622,2.32944,1984.0,1983.9,1.00828]
[1742689227016,1.3212,1984.0,1983.9,1.00828]
[1742689227521,2.32944,1984.0,1983.9,1.00828]
[1742689228219,1.3212,1984.0,1983.9,1.00828]
[1742689229714,1.00818,1984.2,1983.9,1.298]
[1742689229921,1.3259,1984.2,1984.1,1.00819]
[1742689230624,2.33404,1984.2,1984.1,1.00819]
[1742689230829,2.33404,1984.2,1984.1,1.64289]
[1742689231222,1.3259,1984.2,1984.1,1.64289]
[1742689231617,0.6593,1984.3,1984.2,1.00814]
[1742689231824,0.00755477,1984.4,1984.3,1.00809]
[1742689232026,2.34149477,1984.4,1984.3,2.31379]
[1742689232924,2.34149477,1984.4,1984.3,1.3057]
[1742689233425,3.02769477,1984.4,1984.3,1.3057]
[1742689233822,3.02769477,1984.4,1984.3,2.31379]
[1742689234625,1.33345477,1984.4,1984.3,2.31379]
[1742689235224,2.34149477,1984.4,1984.3,2.31379]
[1742689237830,1.33345477,1984.4,1984.3,2.31379]
[1742689239327,2.34149477,1984.4,1984.3,2.31379]
[1742689240834,1.33345477,1984.4,1984.3,2.31379]
[1742689241033,2.34149477,1984.4,1984.3,2.31379]
[1742689242126,1.33345477,1984.4,1984.3,2.31379]
[1742689244634,2.34149477,1984.4,1984.3,2.31379]
[1742689245037,2.34149477,1984.4,1984.3,1.3057]
[1742689245530,1.00814,1984.2,1984.1,2.34506]
[1742689245730,1.00824,1984.0,1983.9,3.07375]
[1742689246931,2.39301,1984.1,1984.0,1.00824]
[1742689247233,2.39301,1984.1,1984.0,2.37154]
[1742689247929,1.3848,1984.1,1984.0,2.37154]
[1742689248130,1.3454,1984.3,1984.2,1.00814]
[1742689248331,0.65,1984.3,1984.2,1.00814]
[1742689248532,0.00755477,1984.4,1984.3,1.00809]
[1742689249541,0.00755477,1984.4,1984.3,2.40399]
[1742689250333,1.00787,1984.8,1984.7,1.00789]
[1742689250638,7.10071,1984.9,1984.4,4.6037]
[1742689250841,1.00799,1984.5,1984.4,2.40389]
[1742689251630,3.00709,1984.5,1984.4,2.40389]
[1742689252136,3.00709,1984.5,1984.4,1.3959]
[1742689252642,1.00804,1984.4,1984.3,0.00755477]
[1742689252844,2.31944,1984.4,1984.3,1.31905477]
[1742689253040,1.3114,1984.4,1984.3,2.32712477]
[1742689253438,2.31944,1984.4,1984.3,2.32712477]
[1742689255743,1.3114,1984.4,1984.3,2.32712477]
[1742689256435,2.31944,1984.4,1984.3,2.32712477]
[1742689257034,1.3114,1984.4,1984.3,2.32712477]
[1742689257244,2.31944,1984.4,1984.3,2.32712477]
[1742689259343,1.3114,1984.4,1984.3,2.32712477]
[1742689270147,3.21535477,1984.6,1984.3,1.31905477]
[1742689270347,1.01550477,1984.6,1984.5,1.00799]
[1742689270850,1.01550477,1984.6,1984.5,1.66899]
[1742689271649,1.01550477,1984.6,1984.5,1.00799]
[1742689272244,2.41460477,1984.6,1984.5,1.00799]
[1742689273555,1.00804,1984.4,1984.3,1.01560477]
[1742689273746,1.00804,1984.4,1984.3,2.31140477]
[1742689274146,2.31174,1984.4,1984.3,2.31140477]
[1742689276547,2.31174,1984.4,1984.3,0.00755477]
[1742689278051,2.31174,1984.4,1984.3,1.29955477]
[1742689278253,2.31174,1984.4,1984.3,2.30764477]
[1742689279460,2.31174,1984.4,1984.3,1.29955477]
[1742689280155,2.31174,1984.4,1984.3,2.30764477]
[1742689280651,2.31174,1984.4,1984.3,1.29955477]
[1742689282658,2.31174,1984.4,1984.3,2.30764477]
[1742689286364,1.3037,1984.4,1984.3,2.30764477]
[1742689287252,2.31174,1984.4,1984.3,2.30764477]
[1742689288651,1.3037,1984.4,1984.3,2.30764477]
[1742689289261,4.87252,1984.5,1984.4,1.00804]
[1742689289561,6.19952,1984.5,1984.4,3.69284]
[1742689290456,1.00799,1984.5,1984.4,2.6848]
[1742689290759,2.34949,1984.5,1984.4,3.6928]
[1742689290961,1.3415,1984.5,1984.4,3.6928]
[1742689294154,2.34949,1984.5,1984.4,3.6928]
[1742689294362,1.3415,1984.5,1984.4,3.6928]
[1742689295069,2.34949,1984.5,1984.4,3.6928]
[1742689296462,1.3415,1984.5,1984.4,3.6928]
[1742689296762,2.34949,1984.5,1984.4,3.6928]
[1742689301269,2.34949,1984.5,1984.4,2.3076]
[1742689301473,2.34949,1984.5,1984.4,1.2996]
[1742689301767,1.00804,1984.4,1984.3,1.01562477]
[1742689301965,2.97124,1984.4,1984.3,2.29702477]
[1742689306671,2.97124,1984.4,1984.3,1.28895477]
[1742689306870,6.17904,1984.4,1984.3,0.00755477]
[1742689307572,1.00814,1984.2,1984.1,1.3162]
[1742689307770,3.2078,1984.2,1984.0,1.0082]
[1742689308077,1.9573,1984.1,1984.0,1.0082]
[1742689308369,2.96549,1984.1,1984.0,1.3162]
[1742689309568,1.00824,1984.0,1983.9,0.00755477]
[1742689309775,2.98504,1984.0,1983.9,0.00755477]
[1742689310072,6.19284,1984.0,1983.9,0.00755477]
[1742689313474,1.0085,1983.6,1983.5,1.00848]
[1742689313666,1.0085,1983.6,1983.5,2.33598]
[1742689313868,4.2163,1983.6,1983.5,1.3275]
[1742689314074,4.2163,1983.6,1983.4,0.6947]
[1742689314075,1.0085,1983.5,1983.4,0.6947]
[1742689314272,2.2782,1983.5,1983.4,2.0222]
[1742689316277,2.2782,1983.5,1983.4,3.03075]
[1742689316481,2.2782,1983.5,1983.4,1.3275]
[1742689317378,5.486,1983.5,1983.4,1.3275]
[1742689317680,5.486,1983.5,1983.4,2.33605]
[1742689318773,1.2697,1983.5,1983.4,2.33605]
[1742689318975,2.2782,1983.5,1983.4,2.33605]
[1742689319670,2.2782,1983.5,1983.4,3.01515]
[1742689322584,2.2782,1983.5,1983.4,2.0066]
[1742689322989,2.2782,1983.5,1983.4,3.01515]
[1742689323177,2.2782,1983.5,1983.4,2.0066]
[1742689323684,2.2782,1983.5,1983.4,3.01515]
[1742689324086,1.70605,1983.7,1983.4,5.2144]
[1742689324285,2.32386,1983.6,1983.5,2.9548]
[1742689324472,2.32386,1983.6,1983.5,1.9463]
[1742689324785,5.53166,1983.6,1983.5,1.9463]
[1742689325085,6.22356,1983.6,1983.5,1.2854]
[1742689325482,6.22356,1983.6,1983.3,1.67903477]
[1742689325483,1.00855,1983.4,1983.3,1.67903477]
[1742689326683,1.00855,1983.4,1983.3,2.96443477]
[1742689328186,2.33148477,1983.5,1983.4,1.00855]
[1742689328491,2.33148477,1983.5,1983.4,2.41345]
[1742689328887,2.33148477,1983.5,1983.4,1.4049]
[1742689329287,2.33148477,1983.5,1983.4,2.41345]
[1742689337092,2.33148477,1983.5,1983.4,1.4049]
[1742689337498,2.33148477,1983.5,1983.4,2.41345]
[1742689340501,1.32295477,1983.5,1983.4,2.41345]
[1742689342099,3.2078,1983.9,1983.7,1.00835]
[1742689342402,1.2748,1983.8,1983.7,1.00835]
[1742689342599,3.2078,1983.9,1983.8,1.00834]
[1742689343006,2.28304,1984.0,1983.9,1.00829]
[1742689343197,1.9644632,1984.2,1983.8,5.72866]
[1742689343402,0.00755477,1984.1,1984.0,1.00819]
[1742689343602,1.28235477,1984.1,1984.0,1.00819]
[1742689344201,0.00755477,1984.1,1984.0,1.00819]
[1742689346510,0.00755477,1984.1,1983.9,1.66917]
[1742689346511,1.28585477,1984.1,1983.9,1.66917]
[1742689346807,1.00824,1984.0,1983.9,1.66917]
[1742689347007,1.65884,1984.0,1983.9,1.66917]
[1742689349113,0.6506,1984.0,1983.9,1.66917]
[1742689349607,1.9596,1984.0,1983.9,1.66917]
[1742689354016,1.9596,1984.0,1983.9,1.00827]
[1742689354017,2.96784,1984.0,1983.9,1.00827]
[1742689354209,2.6219,1984.0,1983.9,1.00827]
[1742689354811,3.63014,1984.0,1983.9,1.00827]
[1742689355113,3.63016,1984.0,1983.9,1.00829]
[1742689356115,1.9596,1984.0,1983.9,1.00829]
[1742689356313,0.00755477,1984.1,1984.0,1.00824]
[1742689357119,1.40055477,1984.1,1984.0,1.00824]
[1742689357512,2.40874477,1984.1,1984.0,1.00824]
[1742689357717,1.40055477,1984.1,1984.0,1.00824]
[1742689358512,1.40055477,1984.1,1984.0,1.66204]